[Event "Ostravsky Konik FIDE-A 2024"]
[Site "Ostrava"]
[Date "2024.05.05"]
[Round "9.6"]
[White "Jedlicka, Ales"]
[Black "Romanishin, Oleg M"]
[Result "1/2-1/2"]
[ECO "E00"]
[WhiteElo "2191"]
[BlackElo "2372"]
[Annotator "TA"]
[PlyCount "72"]
[EventDate "2024.04.26"]
[EventType "swiss"]
[EventCountry "CZE"]
[SourceTitle "playchess.com"]
[Source "ChessBase"]
[SourceQuality "1"]
[TimeControl "40/5400+30:1800+30"]

{[%evp 9,72,12,33,0,0,0,14,0,33,12,19,9,45,29,49,53,39,36,50,47,49,37,50,14,15,5,12,5,18,8,18,27,20,-12,-8,-10,-14,-8,-8,-8,-7,-25,-12,-9,-20,-22,-15,-21,-5,-20,-31,-100,-54,-52,0,0,0,-283,49,20,59,17,51,0,31]} 1. d4 {[%emt 1:31:00]} Nf6 {[%emt 1:31:00]} 2. c4 {[%emt 0:00:30]} e6 {[%emt 0:00:30]} 3. g3 {[%emt 0:00:30]} Bb4+ {[%emt 0:00:30]} 4. Bd2 {[%emt 0:00:30]} a5 {[%emt 0:00:30]} 5. Bg2 {[%emt 0:00:30]} d5 {[%emt 0:00:30]} 6. a3 {[%emt 0:00:30]} Be7 {[%emt 0:00:30]} 7. Qc2 {[%emt 0:00:30]} O-O {[%emt 0:00:30]} 8. Nf3 {[%emt 0:00:30]} Ne4 {[%emt 0:00:30]} 9. O-O {[%emt 0:00:30]} Nd7 {[%emt 0:00:30][%cal Bb8d7,Bd7f6,Bf6e4][%mdl 32]} 10. Nc3 Ndf6 11. Rad1 {[%emt 0:01:00]} b6 {[%emt 0:01:00]} 12. Nxe4 {[%emt 0:00:30]} Nxe4 {[%emt 0:00:30]} 13. Bf4 {[%emt 0:00:30]} Bd6 {[%emt 0:00:30]} 14. Ne5 {[%emt 0:00:30]} Bb7 {[%emt 0:00:30]} 15. f3 {[%emt 0:00:30]} Nf6 {[%emt 0:00:30]} 16. c5 {[%emt 0:00:30]} bxc5 {[%emt 0:00:30]} 17. dxc5 {[%emt 0:00:30]} Bxe5 {[%emt 0:00:30]} 18. Bxe5 {[%emt 0:00:30]} Ba6 {[%emt 0:00:30]} 19. Rfe1 {[%emt 0:00:30]} Nd7 {[%emt 0:00:30]} 20. Bd4 {[%emt 0:00:30]} c6 {[%emt 0:00:30]} 21. Qc3 {[%emt 0:00:30] [#]} e5 $1 {[%emt 0:00:30]} 22. Bxe5 {[%emt 0:00:30]} Nxe5 {[%emt 0:00:30]} 23. Qxe5 {[%emt 0:00:30] Threatens to win with e4.} Re8 {[%emt 0:00:30]} 24. Qd4 {[%emt 0:00:30]} Bxe2 {[%emt 0:00:30]} 25. Rc1 {[%emt 0:00:30]} Rb8 {[%emt 0:00:30]} (25... Ra7 {seems wilder.} 26. Kf2 Rae7 27. b4 axb4 28. axb4 Qd7) 26. Qd2 {[%emt 0:00:30]} Bc4 {[%emt 0:00:30]} 27. Rxe8+ {[%emt 0:00:30]} Qxe8 {[%emt 0:00:30]} 28. Re1 {[%emt 0:00:30] Wards off Qe7} Qd8 {[%emt 0:00:30]} 29. f4 {[%emt 0:00:30]} h6 {[%emt 0:00:30]} 30. h4 {[%emt 0:00:30]} ({Better is} 30. Bh3 $15) 30... Rb3 {[%emt 0:00:30]} ({Black should play} 30... Qf6 $17 31. Qxa5 Rxb2 (31... Qxb2 32. Qc7 $11) 32. Re8+ Kh7) 31. Re3 $15 {[%emt 0:00:30]} Rxe3 {[%emt 0:00:30]} (31... Rb7 $15) 32. Qxe3 $11 {[%emt 0:00:30]} d4 {[%emt 0:00:30]} 33. Qe5 {[%emt 0:00:30][%mdl 8192] [#]} (33. Qe4 $11 {and White is okay.}) 33... Bb5 $2 {[%emt 0:00:30]} (33... d3 $19 {And now ...d2 would win.} 34. Bf3 Bb3) 34. Kf2 $14 {[%emt 0:00:30]} Kf8 {[%emt 0:00:30]} 35. Bf3 {[%emt 0:00:30]} a4 {[%emt 0:00:30]} 36. Bd1 {[%emt 0:00:30]} (36. h5 $14) 36... d3 {[%emt 0:00:30] Weighted Error Value: White=0.25 (precise) /Black=0.34.  Loses game:     	White=1     	---        Missed win:     	---       	Black=1      Mistake:       	White=2     	Black=2      Inaccurate:     	White=3     	Black=5      OK:         	White=12    	Black=12     Best:        	White=1     	Black=1      Brilliant:      	---       	Black=1} 1/2-1/2

[Event "Ostravsky Konik FIDE-A 2024"]
[Site "Ostrava"]
[Date "2024.05.05"]
[Round "9.7"]
[White "Kondys, Piotr"]
[Black "Bujnoch, Radek"]
[Result "0-1"]
[ECO "C48"]
[WhiteElo "2048"]
[BlackElo "2307"]
[Annotator "TA"]
[PlyCount "84"]
[EventDate "2024.04.26"]
[EventType "swiss"]
[EventCountry "CZE"]
[SourceTitle "playchess.com"]
[Source "ChessBase"]
[SourceQuality "1"]
[TimeControl "40/5400+30:1800+30"]

{[%evp 10,84,23,2,17,6,5,0,0,-3,-5,-4,-11,-38,-37,-31,-39,-81,-43,-128,-134,-126,-97,-138,-116,-112,-110,-707,-708,-676,-685,-636,-238,-248,-253,-218,-208,-324,-297,-299,-298,-389,-377,-385,-379,-359,-369,-446,-418,-526,-474,-506,-463,-490,-503,-455,-426,-805,-793,-980,-722,-1076,-1073,-1099,-1080,-1187,-495,-1187,-1131,-1077,-1184,-1096,-1047,-29988,-29989,-29989,-29990]} 1. e4 {[%emt 0:00:04]} e5 {[%emt 0:00:04]} 2. Nf3 {[%emt 0:00:11]} Nc6 {[%emt 0:00:03]} 3. Bb5 {[%emt 0:00:11]} Nf6 {[%emt 0:00:05]} 4. d3 {[%emt 0:00:14]} Bc5 {[%emt 0:00:05]} 5. Bxc6 {[%emt 0:00:10]} dxc6 {[%emt 0:00:10]} 6. Nc3 {[%emt 0:00:07]} (6. Nxe5 $2 {perishes.} Qd4 7. Be3 Qxe5 $19) 6... Bd6 {[%emt 0:00:08]} 7. h3 {[%emt 0:00:26]} Be6 {[%emt 0:00:10]} 8. Be3 {[%emt 0:00:13]} Qe7 {[%emt 0:00:31] The position is equal.} 9. a3 {[%emt 0:16:50]} O-O-O {[%emt 0:02:10]} 10. Qe2 {[%emt 0:01:02]} Nd7 {[%emt 0:01:17] Dodges b4} 11. Nd2 {[%emt 0:05:09][%cal Ob2b4]} ({Reject} 11. Bxa7 b6 12. d4 Kb7 $17) 11... Kb8 {[%emt 0:07:08]} 12. b4 {[%emt 0:08:33]} g6 {[%emt 0:00:46][%cal Bg7g6,Bg6g5,Bg5g4][%mdl 32]} 13. O-O {[%emt 0:00:56]} g5 {[%emt 0:01:21]} 14. d4 {[%emt 0:07:51]} ({White should play} 14. b5 $15) 14... exd4 $17 {[%emt 0:04:07]} 15. Bxd4 {[%emt 0:00:24][%cal Oe4e5]} Rhg8 {[%emt 0:02:10]} 16. Rad1 {[%emt 0:12:19]} Ne5 {[%emt 0:04:25]} 17. Qe3 {[%emt 0:02:24]} g4 {[%emt 0:02:19]} 18. h4 {[%emt 0:08:23][%mdl 8192] White does not recover from this.} (18. g3 $17) 18... Qxh4 $19 {[%emt 0:01:25]} 19. Bxe5 {[%emt 0:03:06]} Bxe5 {[%emt 0:01:01][%csl Ge5][%cal Rh4h2] [#]} 20. g3 {[%emt 0:00:07]} Qf6 {[%emt 0:07:30]} (20... Qh3 21. Ne2 Rg6) 21. Ne2 {[%emt 0:00:47]} h5 {[%emt 0:00:45]} 22. Kg2 {[%emt 0:03:12]} h4 {[%emt 0:04:08]} 23. gxh4 {[%emt 0:03:42]} (23. Nb3 $142) 23... Qxh4 {[%emt 0:02:21]} 24. Rh1 {[%emt 0:00:01] Dodges Qh2+} Qf6 {[%emt 0:00:13]} 25. Nb3 {[%emt 0:00:44]} Rxd1 {[%emt 0:08:17]} 26. Rxd1 {[%emt 0:00:11]} Rh8 {[%emt 0:02:57]} 27. Ng3 {[%emt 0:01:30]} Rh3 {[%emt 0:07:27]} 28. Nc5 {[%emt 0:11:37]} Bxg3 {[%emt 0:04:36]} 29. fxg3 {[%emt 0:00:10][%cal Oe3c3]} Qh8 {[%emt 0:00:23]} 30. Qg1 {[%emt 0:03:02] Inhibits Rh2+.} b6 {[%emt 0:00:42]} 31. Nxe6 {[%emt 0:00:26] [#] Hoping for Rd8+.} fxe6 {[%emt 0:00:05][%mdl 4096] Endgame. KQR-KQR} 32. Rd3 {[%emt 0:00:38]} Kb7 {[%emt 0:01:38]} 33. Re3 {[%emt 0:01:18]} (33. a4 $142) 33... Rh7 {[%emt 0:05:07] aiming for ...Rf7.} 34. Rd3 {[%emt 0:01:52]} Qe5 {[%emt 0:01:20]} 35. Qd4 {[%emt 0:00:34]} Qh5 {[%emt 0:00:13]} 36. Qg1 {[%emt 0:00:02] Prevents Qh1+.} Rf7 {[%emt 0:01:39][%csl Gg4][%cal Rh5h3]} 37. Qe1 {[%emt 0:02:28]} Qh3+ {[%emt 0:00:45]} 38. Kg1 {[%emt 0:00:02]} Rh7 {[%emt 0:00:23]} 39. Kf2 {[%emt 0:01:53]} Qh2+ {[%emt 0:00:54]} 40. Ke3 {[%emt 0:00:02]} Rf7 {[%emt 0:01:18][%cal Oe6e5] ( -> ...e5!)} 41. Rc3 {[%emt 0:11:27]} e5 {[%emt 0:00:44][%csl Gg4][%cal Rf7f3]} 42. Kd3 {[%emt 0:00:12]} b5 {[%emt 0:58:40] Weighted Error Value: White=0.85/Black=0.26 (precise) .  Loses game:     	White=1     	---        Mistake:       	White=3     	---        Inaccurate:     	White=4     	Black=1      OK:         	White=4     	Black=11     Best:        	White=2     	Black=3} 0-1